fUSD/lending_fUSD_20240803
["ID","MTS","AMOUNT","RATE_DAILY","PERIOD"]
[334024136,1722685836530,-1767.75,0.00024657,9]
[334024137,1722685836540,-173.07270371,0.00024657,9]
[334024138,1722685836549,-500.0,0.00024657,9]
[334024139,1722685836558,-588.10906659,0.00024657,9]
[334024140,1722685836567,-500.0,0.00024657,9]
[334024141,1722685836577,-500.0,0.00024657,9]
[334024142,1722685836586,-500.0,0.00024657,9]
[334024143,1722685836595,-500.0,0.00024657,9]
[334024144,1722685836604,-363.0,0.00024657,9]
[334024145,1722685836615,-5000.0,0.00024658,2]
[334024146,1722685836624,-1100.0,0.00024664,2]
[334024147,1722685836633,-2500.0,0.00024675,2]
[334024148,1722685836643,-5494.3742463,0.0002468,3]
[334024149,1722685836653,-5000.0,0.00024681,2]
[334024150,1722685836662,-800.0,0.00024687,2]
[334024151,1722685836671,-300.0,0.0002469,4]
[334024152,1722685836681,-153.3909946,0.00024702,2]
[334024153,1722685836693,-182.09708671,0.00024702,2]
[334024154,1722685836703,-167.82436667,0.00024702,2]
[334024155,1722685836712,-500.0,0.00024731,2]
[334024156,1722685836721,-1100.0,0.00024731,2]
[334024157,1722685836732,-5000.0,0.00024737,2]
[334024158,1722685836742,-500.0,0.00024737,2]
[334024159,1722685836751,-500.0,0.00024738,2]
[334024160,1722685836762,-2500.0,0.00024742,2]
[334024161,1722685836772,-1747.85,0.00024758,9]
[334024162,1722685836782,-938.0,0.00024759,2]
[334024163,1722685836791,-2500.0,0.00024765,2]
[334024164,1722685836801,-150.0,0.00024768,120]
[334024165,1722685836810,-150.0,0.00024769,10]
[334024166,1722685836819,-150.0,0.00024769,10]
[334024167,1722685836830,-150.0,0.00024769,10]
[334024168,1722685836839,-150.0,0.00024769,10]
[334024169,1722685836847,-150.0,0.00024769,10]
[334024170,1722685836857,-150.0,0.00024769,10]
[334024171,1722685836866,-150.0,0.00024769,10]
[334024172,1722685836876,-150.0,0.00024769,10]
[334024173,1722685836885,-150.0,0.00024769,10]
[334024174,1722685836894,-150.0,0.00024769,10]
[334024175,1722685836903,-150.0,0.00024769,10]
[334024176,1722685836912,-150.0,0.00024769,10]
[334024177,1722685836921,-150.0,0.00024769,10]
[334024178,1722685836930,-150.0,0.00024769,10]
[334024179,1722685836939,-150.0,0.00024769,10]
[334024180,1722685836948,-150.0,0.00024769,10]
[334024181,1722685836958,-150.0,0.00024769,10]
[334024182,1722685836967,-150.0,0.00024769,10]
[334024183,1722685836976,-31848.60878109,0.0002477,2]
[334024184,1722685836985,-188.87,0.00024773,2]
[334024185,1722685836994,-1179.8398466,0.00024783,2]
[334024186,1722685837003,-1367.5300615,0.00024783,2]
[334024187,1722685837012,-1555.2202763,0.00024783,2]
[334024188,1722685837021,-1742.9104912,0.00024783,2]
[334024189,1722685837030,-3136.4312006,0.00024783,2]
[334024190,1722685837040,-3635.3781107,0.00024783,2]
[334024191,1722685837048,-4134.3250207,0.00024783,2]
[334024192,1722685837057,-4633.2719308,0.00024783,2]
[334024193,1722685837067,-179.2002619,0.00024783,2]
[334024194,1722685837077,-179.2002619,0.00024783,2]
[334024195,1722685837087,-179.2002619,0.00024783,2]
[334024196,1722685837096,-179.2002619,0.00024783,2]
[334024197,1722685837105,-500.0,0.00024799,9]
[334024198,1722685837115,-500.0,0.00024799,9]
[334024199,1722685837124,-500.0,0.00024799,9]
[334024200,1722685837133,-340.56153762,0.00024799,9]
[334024201,1722685837143,-500.0,0.00024799,9]
[334024202,1722685837152,-500.0,0.00024799,9]
[334024203,1722685837162,-500.0,0.00024799,9]
[334024204,1722685837171,-500.0,0.00024799,9]
[334024205,1722685837181,-500.0,0.00024799,9]
[334024206,1722685837191,-500.0,0.00024799,9]
[334024207,1722685837200,-520.81,0.00024799,9]
[334024208,1722685837209,-520.81,0.00024799,9]
[334024209,1722685837219,-520.81,0.00024799,9]
[334024210,1722685837229,-1767.75,0.00024799,9]
[334024211,1722685837237,-1767.75,0.00024799,9]
[334024212,1722685837247,-1767.75,0.00024799,9]
[334024213,1722685837256,-500.0,0.00024799,9]
[334024214,1722685837267,-500.0,0.00024799,9]
[334024215,1722685837276,-629.71151298,0.00024799,9]
[334024216,1722685837286,-218153.44240545,0.000248,2]
[334024217,1722685837303,-577.5783648,0.000248,2]
[334024223,1722685837808,-462.45588772,0.00013441,2]
[334024234,1722685838541,-37.54411228,0.00013441,2]
[334024235,1722685838551,-366.9755387,0.0002,2]
[334024236,1722685838560,-859.91592895,0.000248,2]
[334024237,1722685839071,-2644.17619719,0.000248,2]
[334024238,1722685839083,-15160.86734892,0.000248,2]
[334024239,1722685839094,-483775.57893866,0.000248,2]
[334024240,1722685839103,-300.0,0.000248,14]
[334024241,1722685839112,-150.0,0.00024802,2]
[334024242,1722685839121,-500.0,0.00024802,2]
[334024243,1722685839131,-5000.0,0.00024828,2]
[334024244,1722685839140,-5000.0,0.00024838,2]
[334024245,1722685839149,-651.55365604,0.0002487,2]
[334024246,1722685839158,-150.0,0.00024875,2]
[334024247,1722685839168,-238.6093268,0.00024875,2]
[334024248,1722685839177,-996.22,0.0002488,2]
[334024249,1722685839186,-5000.0,0.00024881,2]
[334024250,1722685839195,-2500.0,0.00024882,2]
[334024251,1722685839204,-500.0,0.00024891,2]
[334024252,1722685839214,-500.0,0.00024899,9]
[334024253,1722685839224,-500.0,0.00024899,9]
[334024254,1722685839233,-500.0,0.00024899,9]
[334024255,1722685839242,-153.3909946,0.000249,2]
[334024256,1722685839252,-182.09708671,0.000249,2]
[334024257,1722685839262,-162.0994143,0.000249,2]
[334024258,1722685839271,-196.6512983,0.000249,2]
[334024259,1722685839281,-153.79,0.000249,31]
[334024260,1722685839290,-153.79,0.000249,31]
[334024261,1722685839299,-153.79,0.000249,31]
[334024262,1722685839308,-153.79,0.000249,31]
[334024263,1722685839317,-153.79,0.000249,31]
[334024264,1722685839327,-153.79,0.000249,31]
[334024265,1722685839337,-153.79,0.000249,31]
[334024266,1722685839346,-153.79,0.000249,31]
[334024267,1722685839355,-153.79,0.000249,31]
[334024268,1722685839364,-153.79,0.000249,31]
[334024269,1722685839373,-153.79,0.000249,31]
[334024270,1722685839382,-153.79,0.000249,31]
[334024271,1722685839391,-153.79,0.000249,31]
[334024272,1722685839401,-158.74456368,0.000249,2]
[334024273,1722685839410,-158.74456368,0.000249,2]
[334024274,1722685839419,-158.74456368,0.000249,2]
[334024275,1722685839428,-158.74456368,0.000249,2]
[334024276,1722685839438,-158.74456368,0.000249,2]
[334024277,1722685839447,-158.74456368,0.000249,2]
[334024278,1722685839456,-158.74456368,0.000249,2]
[334024279,1722685839465,-158.74456368,0.000249,2]
[334024280,1722685839474,-158.74456368,0.000249,2]
[334024281,1722685839483,-158.74456368,0.000249,2]
[334024282,1722685839492,-158.74456368,0.000249,2]
[334024283,1722685839501,-159.24,0.000249,2]
[334024284,1722685839510,-381.06195283,0.000249,2]
[334024285,1722685839519,-381.06195283,0.000249,2]
[334024286,1722685839528,-381.06195283,0.000249,2]
[334024287,1722685839537,-381.06195283,0.000249,2]
[334024289,1722685839545,-381.06195283,0.000249,2]
[334024290,1722685839555,-381.06195283,0.000249,2]
[334024291,1722685839564,-381.06195283,0.000249,2]
[334024292,1722685839572,-381.06195283,0.000249,2]
[334024293,1722685839585,-381.06195283,0.000249,2]
[334024294,1722685839595,-381.06195283,0.000249,2]
[334024295,1722685839604,-381.06195283,0.000249,2]
[334024296,1722685839613,-381.06195283,0.000249,2]
[334024297,1722685839623,-381.06195283,0.000249,2]
[334024298,1722685839633,-381.06195283,0.000249,2]
[334024299,1722685839642,-381.06195283,0.000249,2]
[334024300,1722685839651,-381.06195283,0.000249,2]
[334024301,1722685839660,-381.06195283,0.000249,2]
[334024302,1722685839670,-381.06195283,0.000249,2]
[334024303,1722685839680,-381.06195283,0.000249,2]
[334024304,1722685839692,-381.56,0.000249,2]
[334024305,1722685839702,-285.81650418,0.000249,2]
[334024306,1722685839711,-285.81650418,0.000249,2]
[334024307,1722685839720,-285.81650418,0.000249,2]
[334024308,1722685839732,-285.81650418,0.000249,2]
[334024309,1722685839741,-285.81650418,0.000249,2]
[334024310,1722685839751,-285.81650418,0.000249,2]
[334024312,1722685839761,-285.81650418,0.000249,2]
[334024313,1722685839772,-285.81650418,0.000249,2]
[334024314,1722685839782,-285.81650418,0.000249,2]
[334024315,1722685839792,-285.81650418,0.000249,2]
[334024316,1722685839801,-285.81650418,0.000249,2]
[334024317,1722685839811,-285.81650418,0.000249,2]
[334024318,1722685839820,-285.81650418,0.000249,2]
[334024319,1722685839830,-285.81650418,0.000249,2]
[334024320,1722685839839,-285.81650418,0.000249,2]
[334024321,1722685839849,-285.81650418,0.000249,2]
[334024322,1722685839858,-285.81650418,0.000249,2]
[334024324,1722685839867,-285.81650418,0.000249,2]
[334024326,1722685839877,-285.81650418,0.000249,2]
[334024328,1722685839887,-286.31,0.000249,2]
[334024329,1722685839896,-1143.34101673,0.000249,2]
[334024330,1722685839906,-1143.34101673,0.000249,2]
[334024331,1722685839915,-1143.34101673,0.000249,2]
[334024332,1722685839924,-1143.34101673,0.000249,2]
[334024333,1722685839934,-1143.34101673,0.000249,2]
[334024334,1722685839943,-1143.34101673,0.000249,2]
[334024335,1722685839952,-1143.34101673,0.000249,2]
[334024336,1722685840137,-1143.34101673,0.000249,2]
[334024337,1722685840148,-1143.34101673,0.000249,2]
[334024338,1722685840158,-1143.34101673,0.000249,2]
[334024339,1722685840167,-1143.34101673,0.000249,2]
[334024340,1722685840176,-1143.34101673,0.000249,2]
[334024341,1722685840186,-1143.34101673,0.000249,2]
[334024342,1722685840195,-1143.34101673,0.000249,2]
[334024343,1722685840204,-1143.34101673,0.000249,2]
[334024344,1722685840213,-1143.34101673,0.000249,2]
[334024345,1722685840222,-1143.34101673,0.000249,2]
[334024346,1722685840231,-1143.34101673,0.000249,2]
[334024347,1722685840240,-1143.34101673,0.000249,2]
[334024348,1722685840250,-1143.84,0.000249,2]
[334024349,1722685840259,-152.89188304,0.000249,2]
[334024350,1722685840268,-152.89188304,0.000249,2]
[334024351,1722685840277,-152.89188304,0.000249,2]
[334024352,1722685840286,-152.89188304,0.000249,2]
[334024353,1722685840296,-152.89188304,0.000249,2]
[334024354,1722685840305,-153.39,0.000249,2]
[334024355,1722685840315,-183.54525965,0.000249,2]
[334024356,1722685840323,-183.54525965,0.000249,2]
[334024357,1722685840334,-183.54525965,0.000249,2]
[334024358,1722685840343,-183.54525965,0.000249,2]
[334024359,1722685840352,-183.54525965,0.000249,2]
[334024360,1722685840361,-183.54525965,0.000249,2]
[334024361,1722685840370,-183.54525965,0.000249,2]
[334024362,1722685840379,-183.54525965,0.000249,2]
[334024363,1722685840389,-183.54525965,0.000249,2]
[334024364,1722685840398,-183.54525965,0.000249,2]
[334024365,1722685840407,-183.54525965,0.000249,2]
[334024367,1722685840416,-183.54525965,0.000249,2]
[334024368,1722685840425,-183.54525965,0.000249,2]
[334024369,1722685840434,-183.54525965,0.000249,2]
[334024370,1722685840444,-183.54525965,0.000249,2]
[334024371,1722685840453,-183.54525965,0.000249,2]
[334024373,1722685840462,-183.54525965,0.000249,2]
[334024374,1722685840471,-183.54525965,0.000249,2]
[334024375,1722685840481,-183.54525965,0.000249,2]
[334024376,1722685840490,-184.04,0.000249,2]
[334024377,1722685840499,-303.7792838,0.000249,2]
[334024378,1722685840508,-170.72651167,0.000249,2]
[334024380,1722685840517,-46060.35746677,0.000249,2]
[334024382,1722685840526,-310.13228852,0.000249,2]
[334024384,1722685840535,-1226.61225789,0.000249,2]
[334024385,1722685840544,-182.76098264,0.000249,2]
[334024387,1722685840553,-2500.0,0.00024901,2]
[334024389,1722685840562,-2500.0,0.00024904,2]
[334024391,1722685840571,-2500.0,0.00024905,2]
[334024393,1722685840582,-545.3954256,0.00024911,2]
[334024395,1722685840591,-5000.0,0.00024912,2]
[334024397,1722685840600,-2402.32502398,0.00024931,4]
[334024399,1722685840609,-1000.0,0.00024932,120]
[334024401,1722685840618,-1000.0,0.00024932,120]
[334024403,1722685840628,-500.0,0.00024932,120]
[334024405,1722685840637,-5000.0,0.00024935,2]
[334024407,1722685840646,-2500.0,0.00024939,2]
[334024409,1722685840655,-1100.0,0.00024941,2]
[334024411,1722685840664,-500.0,0.00024953,2]
[334024413,1722685840673,-500.0,0.00024969,2]
[334024415,1722685840683,-410.0,0.00024986,30]
[334024417,1722685840697,-5000.0,0.00024989,2]
[334024419,1722685840706,-5000.0,0.00024995,2]
[334024421,1722685840715,-1747.85,0.00024998,9]
[334024423,1722685840729,-520.81,0.00024998,9]
[334024425,1722685840739,-1767.75,0.00024998,9]
[334024427,1722685840749,-107176.17963801,0.00024999,2]
[334024429,1722685840760,-1747.85,0.00024999,9]
[334024431,1722685840770,-1747.85,0.00024999,9]
[334024433,1722685840779,-612.36587778,0.00024999,9]
[334024435,1722685840793,-544.38170658,0.00024999,9]
[334024438,1722685840805,-591.10241564,0.00024999,9]
[334024440,1722685840814,-1747.85,0.00024999,9]
[334024441,1722685840823,-31.83070372,0.00024999,9]
[334024443,1722685840835,-746.76127472,0.00024999,9]
[334024444,1722685840846,-331.52679339,0.00024999,9]
[334024445,1722685840859,-637.73122817,0.00024999,9]
[334024446,1722685840868,-249.6300356,0.00024999,9]
[334024450,1722685840957,-654.35604562,0.00024999,9]
[334024452,1722685840968,-844.10335498,0.00024999,9]
[334024454,1722685840978,-500.0,0.00024999,9]
[334024456,1722685840988,-500.0,0.00024999,9]
[334024458,1722685840998,-500.0,0.00024999,9]
[334024460,1722685841007,-500.0,0.00024999,9]
[334024462,1722685841018,-500.0,0.00024999,9]
[334024464,1722685841028,-500.0,0.00024999,9]
[334024466,1722685841038,-500.0,0.00024999,9]
[334024468,1722685841047,-500.0,0.00024999,9]
[334024470,1722685841057,-500.0,0.00024999,9]
[334024472,1722685841067,-500.0,0.00024999,9]
[334024474,1722685841076,-500.0,0.00024999,9]
[334024476,1722685841086,-500.0,0.00024999,9]
[334024478,1722685841095,-500.0,0.00024999,9]
[334024480,1722685841105,-422.63532771,0.00024999,9]
[334024482,1722685841114,-500.0,0.00024999,9]
[334024484,1722685841122,-420.90290033,0.00024999,9]
[334024486,1722685841132,-520.81,0.00024999,9]
[334024488,1722685841141,-520.81,0.00024999,9]
[334024490,1722685841150,-520.81,0.00024999,9]
[334024492,1722685841160,-520.81,0.00024999,9]
[334024494,1722685841169,-520.81,0.00024999,9]
[334024496,1722685841179,-520.81,0.00024999,9]
[334024498,1722685841188,-520.81,0.00024999,9]
[334024500,1722685841198,-520.81,0.00024999,9]
[334024502,1722685841207,-520.81,0.00024999,9]
[334024504,1722685841216,-520.81,0.00024999,9]
[334024505,1722685841225,-520.81,0.00024999,9]
[334024507,1722685841234,-520.81,0.00024999,9]
[334024509,1722685841245,-520.81,0.00024999,9]
[334024511,1722685841254,-520.81,0.00024999,9]
[334024513,1722685841263,-520.81,0.00024999,9]
[334024516,1722685841275,-520.81,0.00024999,9]
[334024518,1722685841284,-520.89881417,0.00024999,9]
[334024519,1722685841293,-1767.75,0.00024999,9]
[334024521,1722685841302,-1767.75,0.00024999,9]
[334024523,1722685841311,-1767.75,0.00024999,9]
[334024525,1722685841321,-1592.35716891,0.00024999,9]
[334024527,1722685841334,-175.39283109,0.00024999,9]
[334024529,1722685841343,-1767.75,0.00024999,9]
[334024531,1722685841352,-1767.75,0.00024999,9]
[334024533,1722685841361,-1767.75,0.00024999,9]
[334024535,1722685841371,-1767.75,0.00024999,9]
[334024537,1722685841380,-1767.75,0.00024999,9]
[334024538,1722685841389,-1767.75,0.00024999,9]
[334024540,1722685841398,-1767.75,0.00024999,9]
[334024542,1722685841407,-1767.75,0.00024999,9]
[334024544,1722685841416,-1767.75,0.00024999,9]
[334024546,1722685841425,-1767.75,0.00024999,9]
[334024548,1722685841434,-1767.75,0.00024999,9]
[334024550,1722685841444,-1767.75,0.00024999,9]
[334024552,1722685841454,-1767.96033548,0.00024999,9]
[334024554,1722685841464,-9497.90816834,0.00024999,7]
[334024556,1722685841475,-427709.17117057,0.00024999,7]
[334024558,1722685841484,-237.42647873,0.00025,2]
[334024560,1722685841493,-237.40824443,0.00025,2]
[334024562,1722685841502,-158.27216296,0.00025,2]
[334024564,1722685841511,-1038.97568985,0.00025,2]
[334024566,1722685841522,-53436.13590246,0.00025,2]
[334024568,1722685841534,-3690.6666,0.00025,2]
[334024570,1722685841544,-1559.99185269,0.00025,2]
[334024572,1722685841556,-2247.32075178,0.00025,2]
[334024575,1722685841567,-2209.30261648,0.00025,2]
[334024578,1722685841681,-3008.20031834,0.00025,2]
[334024585,1722685842817,-1109.25964547,0.00025,2]
[334024586,1722685842870,-300.25,0.00025,2]
[334024587,1722685842882,-620.375,0.00025,2]
[334024588,1722685842894,-45912.34257846,0.00025,2]
[334024589,1722685842923,-325.0,0.00025,2]
[334024590,1722685843031,-1707.71120296,0.00025,2]
[334024591,1722685843044,-894.10269263,0.00025,2]
[334024592,1722685843088,-574.42355092,0.00025,2]
[334024599,1722685844412,-329.70014336,0.00025,2]
[334024601,1722685846014,-1123.4,0.00025,2]
[334024602,1722685846026,-1208.0,0.00025,2]
[334024603,1722685846067,-1503.92212859,0.00025,2]
[334024604,1722685846122,-500.0,0.00025,2]
[334024605,1722685846176,-5910.65315546,0.00025,2]
[334024606,1722685926791,2800.0,9.093e-05,2]
[334024607,1722685975081,157.89086437,9.093e-05,2]
[334024608,1722685984302,987.41201838,9.093e-05,2]
[334024609,1722686166205,227.60153513,9.093e-05,2]
[334024649,1722687032011,-636.28919083,0.00011022,2]
[334024654,1722687032024,-96.98174023,0.00011022,2]
[334024655,1722687032033,-1073.73542888,0.00011022,2]
[334024656,1722687032043,-254.92977775,0.00011022,2]
[334024657,1722687032053,-550.0,0.00012,2]
[334024658,1722687032064,-500.0,0.00013212,2]
[334024659,1722687032074,-1914.715,0.00013218,2]
[334024660,1722687032084,-500.0,0.00013221,2]
[334024661,1722687032094,-500.0,0.00013229,2]
[334024662,1722687032104,-475.08850601,0.00013238,2]
[334024663,1722687032116,-24.91149399,0.00013238,2]
[334024664,1722687032125,-232.32284477,0.00013247,2]
[334024665,1722687032137,-267.67715523,0.00013247,2]
[334024666,1722687032147,-480.02850601,0.00013256,2]
[334024667,1722687032159,-19.97149399,0.00013256,2]
[334024668,1722687032168,-500.0,0.00013265,2]
[334024669,1722687032178,-500.0,0.00013273,2]
[334024670,1722687032188,-500.0,0.00013282,2]
[334024671,1722687032198,-500.0,0.00013291,2]
[334024672,1722687032208,-476.1543761,0.000133,2]
[334024673,1722687032219,-23.8456239,0.000133,2]
[334024674,1722687032229,-500.0,0.00013309,2]
[334024675,1722687032238,-492.75545109,0.00013317,2]
[334024676,1722687032253,-7.24454891,0.00013317,2]
[334024677,1722687032263,-500.0,0.00013326,2]
[334024678,1722687032272,-500.0,0.00013335,2]
[334024679,1722687032282,-500.0,0.00013344,2]
[334024680,1722687032292,-500.0,0.00013353,2]
[334024681,1722687032301,-500.0,0.00013361,2]
[334024682,1722687032310,-500.0,0.0001337,2]
[334024683,1722687032320,-500.0,0.00013379,2]
[334024684,1722687032329,-500.0,0.00013388,2]
[334024685,1722687032339,-500.0,0.00013397,2]
[334024686,1722687032349,-500.0,0.00013405,2]
[334024687,1722687032359,-500.0,0.00013414,2]
[334024688,1722687032368,-500.0,0.00013423,2]
[334024689,1722687032378,-500.0,0.00013432,2]
[334024690,1722687032388,-176.02503768,0.00013973,2]
[334024691,1722687032403,-59.68496232,0.00013973,2]
[334024692,1722687032413,-600.0,0.00014,2]
[334024693,1722687032422,-375.25,0.00015775,2]
[334024694,1722687032432,-264.39832168,0.0001678,2]
[334024695,1722687032448,-235.60167832,0.0001678,2]
[334024696,1722687032458,-384.05006475,0.0001678,2]
[334024697,1722687032469,-215.94993525,0.0001678,2]
[334024698,1722687032478,-700.0,0.0001678,2]
[334024699,1722687032488,-600.0,0.00017328,2]
[334024700,1722687032498,-700.0,0.00017328,2]
[334024701,1722687032507,-500.0,0.00017876,2]
[334024702,1722687032516,-600.0,0.00017876,2]
[334024703,1722687032526,-700.0,0.00017876,2]
[334024704,1722687032535,-471.0,0.000179,2]
[334024705,1722687032545,-375.25,0.00018039,2]
[334024706,1722687032554,-200.0,0.00018096,2]
[334024707,1722687032564,-250.0,0.00018124,2]
[334024708,1722687032574,-61.16904171,0.00018424,2]
[334024709,1722687032585,-363.76455997,0.00018424,2]
[334024710,1722687032597,-175.06639832,0.00018424,2]
[334024711,1722687032606,-700.0,0.00018424,2]
[334024712,1722687032615,-165.84,0.00018453,2]
[334024713,1722687032624,-500.0,0.00018972,2]
[334024714,1722687032634,-1100.0,0.00018972,2]
[334024715,1722687032643,-765.12750901,0.000191,2]
[334024716,1722687032655,-246.11249099,0.000191,2]
[334024717,1722687032664,-2000.0,0.000194,2]
[334024718,1722687032674,-275.95368174,0.0001952,2]
[334024719,1722687032715,-824.04631826,0.0001952,2]
[334024720,1722687032724,-600.0,0.0001952,2]
[334024721,1722687032733,-700.0,0.0001952,2]
[334024722,1722687032744,-259.62,0.00019934,2]
[334024723,1722687032753,-500.0,0.00020068,2]
[334024724,1722687032763,-1200.0,0.00020068,2]
[334024725,1722687032772,-1100.0,0.00020068,2]
[334024726,1722687032782,-500.0,0.0002009,2]
[334024727,1722687032791,-800.0,0.00020127,2]
[334024728,1722687032802,-223.40695585,0.00020245,2]
[334024729,1722687032811,-375.25,0.00020303,2]
[334024730,1722687032821,-200.0,0.00020358,2]
[334024731,1722687032830,-102.60229173,0.000204,2]
[334024732,1722687032842,-1414.44291123,0.000204,2]
[334024733,1722687032853,-482.95479704,0.000204,2]
[334024734,1722687032862,-189.38760296,0.00020447,2]
[334024735,1722687032873,-46.32239704,0.00020447,2]
[334024736,1722687032883,-919.89426765,0.00020555,2]
[334024737,1722687032894,-741.8811006,0.00020555,2]
[334024738,1722687032913,-331.80442675,0.00020555,2]
[334024739,1722687032922,-452.53908411,0.00020556,2]
[334024740,1722687032935,-489.75104013,0.00020556,2]
[334024741,1722687032944,-1200.0,0.00020616,2]
[334024742,1722687032953,-600.0,0.00020616,2]
[334024743,1722687032963,-1100.0,0.00020616,2]
[334024744,1722687032973,-700.0,0.00020616,2]
[334024745,1722687032982,-500.0,0.00020705,2]
[334024746,1722687032992,-500.0,0.00020775,2]
[334024747,1722687033001,-155.0,0.00020831,2]
[334024748,1722687033012,-500.0,0.00020924,2]
[334024749,1722687033021,-955.24895987,0.00021,7]
[334024750,1722687033033,-44.75104013,0.00021,7]
[334024751,1722687033043,-500.0,0.00021005,2]
[334024752,1722687033053,-500.0,0.00021052,2]
[334024753,1722687033062,-500.0,0.00021164,2]
[334024754,1722687033072,-1200.0,0.00021164,2]
[334024755,1722687033081,-1100.0,0.00021164,2]
[334024756,1722687033091,-500.0,0.00021189,2]
[334024757,1722687033101,-500.0,0.00021312,2]
[334024758,1722687033110,-1833.31193198,0.000214,2]
[334024759,1722687033122,-166.68806802,0.000214,2]
[334024760,1722687033131,-951.4970091,0.00021433,2]
[334024761,1722687033141,-500.0,0.00021461,2]
[334024762,1722687033151,-600.0,0.00021712,2]
[334024763,1722687033161,-700.0,0.00021712,2]
[334024764,1722687033171,-1200.0,0.00021712,2]
[334024765,1722687033183,-1100.0,0.00021712,2]
[334024766,1722687033196,-95.81502288,0.0002189,2]
[334024767,1722687033210,-404.18497712,0.0002189,2]
[334024768,1722687033220,-769.31223584,0.000219,2]
[334024769,1722687033230,-160.0,0.000219,2]
[334024770,1722687033240,-150.0,0.00021918,2]
[334024771,1722687033250,-1474.72,0.00021918,2]
[334024772,1722687033260,-106.38943273,0.00021918,2]
[334024774,1722687037975,-51.70184029,0.00021918,2]
[334024775,1722687037985,-500.0,0.00021918,2]
[334024776,1722687037994,-367.10210471,0.00021918,2]
[334024777,1722687038985,-132.89789529,0.00021918,2]
[334024778,1722687038995,-443.97657023,0.00021918,2]
[334024779,1722687039008,-56.02342977,0.00021918,2]
[334024780,1722687039018,-500.0,0.00021918,2]
[334024781,1722687039027,-409.38973018,0.00021918,2]
[334024782,1722687039039,-90.61026982,0.00021918,2]
[334024783,1722687039048,-500.0,0.00021918,2]
[334024784,1722687039058,-312.02054317,0.00021945,2]
[334024785,1722687039069,-187.97945683,0.00021945,2]
[334024786,1722687039078,-1000.0,0.00022,7]
[334024787,1722687039087,-868.0,0.00022,7]
[334024788,1722687039097,-500.0,0.00022199,2]
[334024789,1722687039106,-500.0,0.00022249,2]
[334024790,1722687039116,-500.0,0.0002226,2]
[334024791,1722687039125,-1200.0,0.0002226,2]
[334024792,1722687039134,-500.0,0.00022302,2]
[334024793,1722687039144,-2000.0,0.000224,2]
[334024794,1722687039154,-665.09726624,0.00022406,2]
[334024795,1722687039165,-500.0,0.00022424,2]
[334024796,1722687039174,-259.62,0.00022426,2]
[334024797,1722687039184,-500.0,0.00022489,2]
[334024798,1722687039193,-150.0,0.00022495,2]
[334024799,1722687039203,-984.68826427,0.00022534,2]
[334024800,1722687039212,-375.25,0.00022567,2]
[334024801,1722687039221,-200.0,0.0002262,2]
[334024802,1722687039230,-373.86227356,0.00022643,2]
[334024803,1722687039242,-426.13772644,0.00022643,2]
[334024804,1722687039251,-600.0,0.00022808,2]
[334024805,1722687039260,-700.0,0.00022808,2]
[334024806,1722687039269,-1100.0,0.00022808,2]
[334024807,1722687039279,-1200.0,0.00022808,2]
[334024808,1722687039288,-500.0,0.00022859,2]
[334024809,1722687039297,-1043.0,0.00023,8]
[334024810,1722687039307,-500.0,0.00023009,2]
[334024811,1722687039317,-150.0,0.00023071,2]
[334024812,1722687039327,-500.0,0.00023088,2]
[334024813,1722687039336,-180.0,0.00023205,2]